[Event "*** Titled Tuesday Blitz"]
[Site "Chess.com"]
[Date "2020.02.04"]
[Round "2"]
[White "SONOFHOLYGOD"]
[Black "comsac"]
[Result "1-0"]
[WhiteElo "2612"]
[BlackElo "2350"]
[TimeControl "180+2"]
[EndTime "13:23:51 PST"]
[Termination "SONOFHOLYGOD won by resignation"]

1. d4 {[%clk 0:03:01.9]} 1... d5 {[%clk 0:03:01.2]} 2. c4 {[%clk 0:03:02.3]}
2... e6 {[%clk 0:03:02.6]} 3. cxd5 {[%clk 0:03:03.4]} 3... exd5 {[%clk
0:03:03.4]} 4. Nc3 {[%clk 0:03:05]} 4... Nf6 {[%clk 0:03:04.8]} 5. Bg5 {[%clk
0:03:05.6]} 5... Be7 {[%clk 0:03:06.4]} 6. e3 {[%clk 0:03:06.8]} 6... O-O {[%clk
0:03:07.7]} 7. Bd3 {[%clk 0:03:08.1]} 7... c6 {[%clk 0:03:08.1]} 8. Nge2 {[%clk
0:03:08.9]} 8... Nbd7 {[%clk 0:03:09]} 9. Qc2 {[%clk 0:03:10.2]} 9... Re8 {[%clk
0:03:09.7]} 10. O-O {[%clk 0:03:11.6]} 10... h6 {[%clk 0:03:10.6]} 11. Bh4
{[%clk 0:03:12.6]} 11... Nf8 {[%clk 0:03:11.6]} 12. f3 {[%clk 0:03:12.9]} 12...
b6 {[%clk 0:03:12.1]} 13. Rad1 {[%clk 0:03:07.4]} 13... Be6 {[%clk 0:03:05.3]}
14. Kh1 {[%clk 0:03:01.7]} 14... a6 {[%clk 0:03:04.6]} 15. Bf2 {[%clk
0:02:50.9]} 15... c5 {[%clk 0:03:04.3]} 16. dxc5 {[%clk 0:02:51.2]} 16... bxc5
{[%clk 0:03:04.3]} 17. Nf4 {[%clk 0:02:52.4]} 17... Qb6 {[%clk 0:02:51.3]} 18.
Na4 {[%clk 0:02:42.6]} 18... Qb4 {[%clk 0:02:37.4]} 19. a3 {[%clk 0:02:38.6]}
19... Qa5 {[%clk 0:02:38.3]} 20. e4 {[%clk 0:02:17.8]} 20... c4 {[%clk
0:02:30.4]} 21. Be2 {[%clk 0:02:12.8]} 21... dxe4 {[%clk 0:02:30.9]} 22. Nxe6
{[%clk 0:01:57.5]} 22... Nxe6 {[%clk 0:02:31.8]} 23. Nb6 {[%clk 0:01:58.1]}
23... Rab8 {[%clk 0:02:10.1]} 24. Nxc4 {[%clk 0:01:58.3]} 24... Qc7 {[%clk
0:02:08.8]} 25. fxe4 {[%clk 0:01:48.4]} 25... Rec8 {[%clk 0:01:49.5]} 26. Bg3
{[%clk 0:01:45.4]} 26... Qc6 {[%clk 0:01:41.9]} 27. Bxb8 {[%clk 0:01:45.3]}
27... Rxb8 {[%clk 0:01:43.8]} 28. e5 {[%clk 0:01:43.2]} 28... Nd5 {[%clk
0:01:39.3]} 29. Bf3 {[%clk 0:01:40.4]} 29... Nec7 {[%clk 0:01:36.9]} 30. Qd3
{[%clk 0:01:32.7]} 30... Rd8 {[%clk 0:01:35.6]} 31. Nd6 {[%clk 0:01:28.3]} 31...
Bxd6 {[%clk 0:01:15.7]} 32. Bxd5 {[%clk 0:01:26.9]} 32... Nxd5 {[%clk
0:01:15.7]} 33. Qxd5 {[%clk 0:01:27.3]} 33... Qxd5 {[%clk 0:01:16.6]} 34. Rxd5
{[%clk 0:01:28.7]} 34... Be7 {[%clk 0:01:17.6]} 35. Rxd8+ {[%clk 0:01:27.8]}
35... Bxd8 {[%clk 0:01:19.5]} 36. Rd1 {[%clk 0:01:28.2]} 36... Bc7 {[%clk
0:01:20.8]} 37. Rd5 {[%clk 0:01:25]} 37... Kf8 {[%clk 0:01:21.8]} 38. b4 {[%clk
0:01:23.4]} 38... Ke7 {[%clk 0:01:22.8]} 39. Rc5 {[%clk 0:01:23.3]} 39... Bb8
{[%clk 0:01:19.1]} 40. Rc6 {[%clk 0:01:23.7]} 40... Bxe5 {[%clk 0:01:18.5]} 41.
Rxa6 {[%clk 0:01:24]} 41... f5 {[%clk 0:01:19.6]} 42. Kg1 {[%clk 0:01:23]} 42...
Kd7 {[%clk 0:01:17.9]} 43. Kf2 {[%clk 0:01:21.1]} 43... Kc7 {[%clk 0:01:19.1]}
44. g3 {[%clk 0:01:21.8]} 44... Kb7 {[%clk 0:01:20.2]} 45. b5 {[%clk 0:01:22.6]}
45... h5 {[%clk 0:01:16.3]} 46. h4 {[%clk 0:01:19.3]} 46... f4 {[%clk
0:01:15.4]} 47. gxf4 {[%clk 0:01:18.6]} 47... Bxf4 {[%clk 0:01:16.6]} 48. Kf3
{[%clk 0:01:19.3]} 48... Be5 {[%clk 0:01:11.5]} 49. a4 {[%clk 0:01:19.3]} 49...
Bc3 {[%clk 0:01:07.9]} 50. Rg6 {[%clk 0:01:19.3]} 50... Kc7 {[%clk 0:01:00.2]}
51. Kf4 {[%clk 0:01:18.7]} 51... Bd4 {[%clk 0:00:59.7]} 52. Kg5 {[%clk
0:01:18.1]} 1-0

[Event "*** Titled Tuesday Blitz"]
[Site "Chess.com"]
[Date "2020.02.04"]
[Round "2"]
[White "Rud_Makarian"]
[Black "vugarrasulov"]
[Result "1-0"]
[WhiteElo "2626"]
[BlackElo "2909"]
[TimeControl "180+2"]
[EndTime "13:23:57 PST"]
[Termination "Rud_Makarian won by resignation"]

1. d4 {[%clk 0:03:01.9]} 1... Nf6 {[%clk 0:03:00.3]} 2. c4 {[%clk 0:03:03.3]}
2... e6 {[%clk 0:03:00.8]} 3. g3 {[%clk 0:03:03.7]} 3... c5 {[%clk 0:03:00.9]}
4. d5 {[%clk 0:03:03.8]} 4... exd5 {[%clk 0:03:02.4]} 5. cxd5 {[%clk 0:03:05.7]}
5... d6 {[%clk 0:03:03.8]} 6. Bg2 {[%clk 0:03:06.6]} 6... g6 {[%clk 0:03:05.3]}
7. Nc3 {[%clk 0:03:07.7]} 7... Bg7 {[%clk 0:03:06.4]} 8. Nf3 {[%clk 0:03:09.6]}
8... O-O {[%clk 0:03:07.7]} 9. O-O {[%clk 0:03:11.5]} 9... Re8 {[%clk
0:03:09.2]} 10. Nd2 {[%clk 0:03:12.5]} 10... a6 {[%clk 0:03:07.8]} 11. a4 {[%clk
0:03:11.9]} 11... Nbd7 {[%clk 0:03:09.2]} 12. h3 {[%clk 0:03:12.4]} 12... Rb8
{[%clk 0:03:09.7]} 13. Nc4 {[%clk 0:03:12.9]} 13... Nb6 {[%clk 0:03:10.3]} 14.
Na3 {[%clk 0:02:53.5]} 14... Bd7 {[%clk 0:03:10.8]} 15. a5 {[%clk 0:02:53.8]}
15... Nc8 {[%clk 0:03:11.7]} 16. Nc4 {[%clk 0:02:55.2]} 16... Bb5 {[%clk
0:03:11.4]} 17. Qb3 {[%clk 0:02:43.9]} 17... Bxc4 {[%clk 0:02:59]} 18. Qxc4
{[%clk 0:02:44.7]} 18... Nd7 {[%clk 0:03:00.9]} 19. e4 {[%clk 0:02:35.4]} 19...
Ne5 {[%clk 0:02:56.9]} 20. Qe2 {[%clk 0:02:33]} 20... c4 {[%clk 0:02:55.5]} 21.
Ra4 {[%clk 0:02:17]} 21... Na7 {[%clk 0:02:28.5]} 22. Be3 {[%clk 0:02:09.3]}
22... Nb5 {[%clk 0:02:28.7]} 23. f4 {[%clk 0:02:07.5]} 23... Nd3 {[%clk
0:02:16.2]} 24. Rxc4 {[%clk 0:02:07.3]} 24... Nc5 {[%clk 0:01:49.3]} 25. Bxc5
{[%clk 0:02:02.6]} 25... dxc5 {[%clk 0:01:49.9]} 26. e5 {[%clk 0:02:03.8]} 26...
Nd4 {[%clk 0:01:41.5]} 27. Qd3 {[%clk 0:01:58.5]} 27... Qxa5 {[%clk 0:01:42.6]}
28. Ne4 {[%clk 0:01:58.6]} 28... Nf5 {[%clk 0:01:27.1]} 29. Rxc5 {[%clk
0:01:51.3]} 29... Qb6 {[%clk 0:01:27.9]} 30. Kh2 {[%clk 0:01:48.8]} 30... Rbc8
{[%clk 0:01:20.4]} 31. Rfc1 {[%clk 0:01:45.9]} 31... Rxc5 {[%clk 0:01:20.5]} 32.
Rxc5 {[%clk 0:01:47.8]} 32... h5 {[%clk 0:01:17]} 33. d6 {[%clk 0:01:46.6]}
33... Rd8 {[%clk 0:01:17]} 34. Rc7 {[%clk 0:01:41.8]} 34... Qxb2 {[%clk
0:01:09.3]} 35. Rxb7 {[%clk 0:01:22.8]} 35... Qa2 {[%clk 0:01:10.3]} 36. Ng5
{[%clk 0:01:21.3]} 36... h4 {[%clk 0:00:50.6]} 37. gxh4 {[%clk 0:01:17.9]} 37...
Nxh4 {[%clk 0:00:50]} 38. Qd5 {[%clk 0:01:17.1]} 38... Qxg2+ {[%clk 0:00:39.5]}
39. Qxg2 {[%clk 0:01:19]} 39... Nxg2 {[%clk 0:00:41]} 40. Kxg2 {[%clk
0:01:20.9]} 40... Rf8 {[%clk 0:00:38.5]} 41. e6 {[%clk 0:01:15.5]} 41... Bf6
{[%clk 0:00:27.8]} 42. Nxf7 {[%clk 0:01:07.4]} 1-0

[Event "*** Titled Tuesday Blitz"]
[Site "Chess.com"]
[Date "2020.02.04"]
[Round "2"]
[White "GoingKronos"]
[Black "Lovkov_Roman"]
[Result "0-1"]
[WhiteElo "2418"]
[BlackElo "2714"]
[TimeControl "180+2"]
[EndTime "13:23:57 PST"]
[Termination "Lovkov_Roman won by resignation"]

1. d4 {[%clk 0:03:01.9]} 1... d5 {[%clk 0:03:00.3]} 2. Nf3 {[%clk 0:03:01.9]}
2... e6 {[%clk 0:03:00.6]} 3. c4 {[%clk 0:02:59.4]} 3... c5 {[%clk 0:03:01.6]}
4. cxd5 {[%clk 0:02:57.6]} 4... exd5 {[%clk 0:03:03.5]} 5. g3 {[%clk 0:02:57.3]}
5... Nc6 {[%clk 0:03:02.8]} 6. Bg2 {[%clk 0:02:57.7]} 6... Nf6 {[%clk
0:03:03.4]} 7. O-O {[%clk 0:02:57.7]} 7... cxd4 {[%clk 0:03:04.2]} 8. Nxd4
{[%clk 0:02:57.5]} 8... Be7 {[%clk 0:03:05.4]} 9. Nc3 {[%clk 0:02:52.5]} 9...
O-O {[%clk 0:03:05.3]} 10. Be3 {[%clk 0:02:40.1]} 10... Be6 {[%clk 0:03:02.2]}
11. Rc1 {[%clk 0:02:33.4]} 11... Qd7 {[%clk 0:03:00.4]} 12. Na4 {[%clk
0:02:24.2]} 12... Bh3 {[%clk 0:02:52.5]} 13. Nxc6 {[%clk 0:02:04.8]} 13... bxc6
{[%clk 0:02:52]} 14. Nc5 {[%clk 0:02:04.8]} 14... Bxc5 {[%clk 0:02:51.3]} 15.
Bxc5 {[%clk 0:02:05.6]} 15... Rfe8 {[%clk 0:02:51.4]} 16. Qd3 {[%clk 0:01:58.5]}
16... Bxg2 {[%clk 0:02:45.6]} 17. Kxg2 {[%clk 0:01:59.1]} 17... Ne4 {[%clk
0:02:47.5]} 18. Be3 {[%clk 0:01:38.7]} 18... Re6 {[%clk 0:02:40.8]} 19. f3
{[%clk 0:01:36.8]} 19... Nd6 {[%clk 0:02:40.5]} 20. Bd4 {[%clk 0:01:28.9]} 20...
Rae8 {[%clk 0:02:39.5]} 21. Rfe1 {[%clk 0:01:22.4]} 21... h5 {[%clk 0:02:14]}
22. b3 {[%clk 0:01:12]} 22... Rg6 {[%clk 0:02:07]} 23. Bf2 {[%clk 0:01:05.8]}
23... f5 {[%clk 0:01:51.8]} 24. Rc2 {[%clk 0:00:54.6]} 24... h4 {[%clk 0:01:48]}
25. Rec1 {[%clk 0:00:55]} 25... hxg3 {[%clk 0:01:48.9]} 26. hxg3 {[%clk
0:00:56.2]} 26... Nf7 {[%clk 0:01:45.8]} 27. Qd4 {[%clk 0:00:52.6]} 27... Re7
{[%clk 0:01:27.3]} 28. Qf4 {[%clk 0:00:49.3]} 28... Rh6 {[%clk 0:01:18]} 29. Bc5
{[%clk 0:00:44.2]} 29... g5 {[%clk 0:01:11.1]} 30. Qd4 {[%clk 0:00:40.6]} 30...
Re8 {[%clk 0:01:03.4]} 31. Bxa7 {[%clk 0:00:41.1]} 31... f4 {[%clk 0:00:55.6]}
32. g4 {[%clk 0:00:40.7]} 32... Ne5 {[%clk 0:00:56.3]} 33. Rh1 {[%clk
0:00:25.6]} 33... Rxh1 {[%clk 0:00:47.5]} 34. Kxh1 {[%clk 0:00:26.1]} 34... Qh7+
{[%clk 0:00:48.6]} 35. Kg2 {[%clk 0:00:22.5]} 35... Qxc2 {[%clk 0:00:48.8]} 0-1

[Event "*** Titled Tuesday Blitz"]
[Site "Chess.com"]
[Date "2020.02.04"]
[Round "2"]
[White "MITerryble"]
[Black "johnathan113"]
[Result "1/2-1/2"]
[WhiteElo "2943"]
[BlackElo "2621"]
[TimeControl "180+2"]
[EndTime "13:24:01 PST"]
[Termination "Game drawn by agreement"]

1. d4 {[%clk 0:03:01.9]} 1... Nf6 {[%clk 0:03:00.2]} 2. Bg5 {[%clk 0:03:02.2]}
2... Ne4 {[%clk 0:03:00.6]} 3. Bf4 {[%clk 0:03:03.3]} 3... c5 {[%clk 0:03:01.7]}
4. f3 {[%clk 0:03:04.5]} 4... Nf6 {[%clk 0:02:59.8]} 5. dxc5 {[%clk 0:03:03.8]}
5... Nc6 {[%clk 0:02:59.3]} 6. Qd2 {[%clk 0:02:58.1]} 6... b6 {[%clk 0:02:58.9]}
7. cxb6 {[%clk 0:02:55.6]} 7... Qxb6 {[%clk 0:03:00.8]} 8. c4 {[%clk 0:02:56.8]}
8... g6 {[%clk 0:02:56.7]} 9. Nc3 {[%clk 0:02:56.5]} 9... Bg7 {[%clk 0:02:56.4]}
10. e4 {[%clk 0:02:57.6]} 10... O-O {[%clk 0:02:57.2]} 11. Be3 {[%clk
0:02:56.8]} 11... Qb4 {[%clk 0:02:22.2]} 12. Rc1 {[%clk 0:02:55.4]} 12... e6
{[%clk 0:02:21]} 13. b3 {[%clk 0:02:49.4]} 13... Bb7 {[%clk 0:02:17.7]} 14. Nb5
{[%clk 0:02:48.4]} 14... Qxd2+ {[%clk 0:02:01.6]} 15. Bxd2 {[%clk 0:02:45.4]}
15... a5 {[%clk 0:01:44.5]} 16. Nd6 {[%clk 0:02:41.3]} 16... Ba6 {[%clk
0:01:45.6]} 17. Ne2 {[%clk 0:02:40.3]} 17... Nb4 {[%clk 0:01:42.5]} 18. Nc3
{[%clk 0:02:40.7]} 18... Ne8 {[%clk 0:01:37.1]} 19. Nxe8 {[%clk 0:02:34.1]}
19... Rfxe8 {[%clk 0:01:39]} 20. a3 {[%clk 0:02:35.6]} 20... Nc6 {[%clk
0:01:37.4]} 21. Nb5 {[%clk 0:02:37]} 21... Bxb5 {[%clk 0:01:33]} 22. cxb5 {[%clk
0:02:37.5]} 22... Nd4 {[%clk 0:01:34.9]} 23. Rc7 {[%clk 0:02:22.3]} 23... d5
{[%clk 0:01:34]} 24. b6 {[%clk 0:02:20.8]} 24... Be5 {[%clk 0:01:24.1]} 25. Rd7
{[%clk 0:02:21]} 25... Nxb3 {[%clk 0:01:22.9]} 26. b7 {[%clk 0:02:22]} 26... Ra7
{[%clk 0:01:13.1]} 27. Bb5 {[%clk 0:02:11]} 27... Rb8 {[%clk 0:01:10.4]} 28.
exd5 {[%clk 0:02:11.6]} 28... Raxb7 {[%clk 0:01:01.5]} 29. Rxb7 {[%clk
0:02:11.3]} 29... Rxb7 {[%clk 0:01:03.4]} 30. Bc6 {[%clk 0:02:12.6]} 30... Rc7
{[%clk 0:01:01.1]} 31. Be3 {[%clk 0:02:04.6]} 31... Nd4 {[%clk 0:00:46.8]} 32.
Bxd4 {[%clk 0:01:53.3]} 32... Bxd4 {[%clk 0:00:48]} 33. Kd2 {[%clk 0:01:55.2]}
33... exd5 {[%clk 0:00:47.9]} 34. Bxd5 {[%clk 0:01:57.1]} 34... Rc3 {[%clk
0:00:47.7]} 35. a4 {[%clk 0:01:53.8]} 35... Bf6 {[%clk 0:00:46.4]} 36. Rb1
{[%clk 0:01:52.1]} 36... Rc5 {[%clk 0:00:45.7]} 37. Ba2 {[%clk 0:01:50.2]} 37...
Bc3+ {[%clk 0:00:46.6]} 38. Kd3 {[%clk 0:01:49.7]} 38... Bb4 {[%clk 0:00:47.6]}
39. Bc4 {[%clk 0:01:51]} 39... Rc8 {[%clk 0:00:48]} 40. Rb2 {[%clk 0:01:52]}
40... Rd8+ {[%clk 0:00:48.5]} 41. Ke4 {[%clk 0:01:53.3]} 41... Rd2 {[%clk
0:00:47.7]} 42. Rxd2 {[%clk 0:01:51.1]} 42... Bxd2 {[%clk 0:00:49.6]} 43. Ke5
{[%clk 0:01:51.6]} 43... Kg7 {[%clk 0:00:50.4]} 44. Kd6 {[%clk 0:01:52.3]} 44...
Kf6 {[%clk 0:00:50.2]} 45. Kd7 {[%clk 0:01:53.2]} 45... h5 {[%clk 0:00:48.4]}
46. Ke8 {[%clk 0:01:54.2]} 46... Bf4 {[%clk 0:00:40.5]} 47. g3 {[%clk
0:01:53.8]} 47... Be3 {[%clk 0:00:40.9]} 48. Bxf7 {[%clk 0:01:55]} 48... Bg1
{[%clk 0:00:41.6]} 49. h3 {[%clk 0:01:56.5]} 49... Bf2 {[%clk 0:00:41.2]} 50. g4
{[%clk 0:01:58.1]} 50... hxg4 {[%clk 0:00:41.2]} 51. hxg4 {[%clk 0:02:00]} 51...
g5 {[%clk 0:00:42.4]} 52. Bc4 {[%clk 0:01:57.7]} 52... Ke5 {[%clk 0:00:43.4]}
53. Kf7 {[%clk 0:01:59.3]} 53... Kf4 {[%clk 0:00:45.3]} 54. Bd5 {[%clk
0:02:00.7]} 54... Be1 {[%clk 0:00:45]} 55. Be4 {[%clk 0:02:01.7]} 55... Bb4
{[%clk 0:00:46.9]} 56. Ke6 {[%clk 0:02:02.1]} 56... Be1 {[%clk 0:00:48.8]} 57.
Kd5 {[%clk 0:02:02.1]} 57... Bb4 {[%clk 0:00:50.7]} 58. Kc6 {[%clk 0:02:03.3]}
58... Be1 {[%clk 0:00:51.4]} 1/2-1/2

[Event "*** Titled Tuesday Blitz"]
[Site "Chess.com"]
[Date "2020.02.04"]
[Round "2"]
[White "stoleriu"]
[Black "Sjakkerntobi"]
[Result "1-0"]
[WhiteElo "2501"]
[BlackElo "2266"]
[TimeControl "180+2"]
[EndTime "13:24:05 PST"]
[Termination "stoleriu won by resignation"]

1. e4 {[%clk 0:03:01.9]} 1... c5 {[%clk 0:03:00.7]} 2. Nc3 {[%clk 0:03:02.5]}
2... e6 {[%clk 0:03:01.8]} 3. Nf3 {[%clk 0:03:03.2]} 3... Nc6 {[%clk 0:03:02.6]}
4. d4 {[%clk 0:03:03.3]} 4... cxd4 {[%clk 0:03:04.5]} 5. Nxd4 {[%clk 0:03:05.2]}
5... Qc7 {[%clk 0:03:04.7]} 6. Qd3 {[%clk 0:03:06.2]} 6... Nf6 {[%clk
0:02:55.4]} 7. Ndb5 {[%clk 0:03:06.6]} 7... Qb8 {[%clk 0:02:55.6]} 8. Qg3 {[%clk
0:03:07.5]} 8... d6 {[%clk 0:02:48.5]} 9. Be3 {[%clk 0:03:04.3]} 9... a6 {[%clk
0:02:46.8]} 10. Nd4 {[%clk 0:02:52.5]} 10... e5 {[%clk 0:02:25.3]} 11. Nxc6
{[%clk 0:01:41.6]} 11... bxc6 {[%clk 0:02:27.2]} 12. O-O-O {[%clk 0:01:43.2]}
12... Be6 {[%clk 0:02:16.7]} 13. Be2 {[%clk 0:01:43.2]} 13... d5 {[%clk
0:02:10.6]} 14. exd5 {[%clk 0:01:38.6]} 14... cxd5 {[%clk 0:02:12.5]} 15. Bg5
{[%clk 0:01:34.8]} 15... d4 {[%clk 0:02:09]} 16. Bxf6 {[%clk 0:01:24.7]} 16...
gxf6 {[%clk 0:01:54.7]} 17. Ne4 {[%clk 0:01:24.5]} 17... Bh6+ {[%clk 0:01:07.3]}
18. Kb1 {[%clk 0:01:20.6]} 18... f5 {[%clk 0:01:07.5]} 19. Nc5 {[%clk 0:01:08]}
19... Qd6 {[%clk 0:00:53.2]} 20. Nxe6 {[%clk 0:00:57.3]} 20... Qxe6 {[%clk
0:00:55.1]} 21. Rhe1 {[%clk 0:00:57.2]} 21... Bf4 {[%clk 0:00:40.3]} 22. Qa3
{[%clk 0:00:55.9]} 22... Qe7 {[%clk 0:00:26.6]} 23. Qa4+ {[%clk 0:00:55.9]}
23... Kf8 {[%clk 0:00:25.8]} 24. g3 {[%clk 0:00:53.7]} 24... Bh6 {[%clk
0:00:25.2]} 25. Bc4 {[%clk 0:00:54]} 25... Bg7 {[%clk 0:00:23.8]} 26. Rxd4
{[%clk 0:00:52.1]} 26... exd4 {[%clk 0:00:22.7]} 27. Rxe7 {[%clk 0:00:52.4]}
27... Kxe7 {[%clk 0:00:24.6]} 28. Qb4+ {[%clk 0:00:53.4]} 28... Kf6 {[%clk
0:00:24.9]} 29. Qd6+ {[%clk 0:00:48]} 29... Kg5 {[%clk 0:00:25.1]} 30. h4+
{[%clk 0:00:29.5]} 30... Kg4 {[%clk 0:00:24.7]} 31. Be2+ {[%clk 0:00:23.1]}
31... Kh3 {[%clk 0:00:24.8]} 32. Bf1+ {[%clk 0:00:24.2]} 32... Kh2 {[%clk
0:00:23.4]} 33. Qd5 {[%clk 0:00:23.8]} 1-0

[Event "*** Titled Tuesday Blitz"]
[Site "Chess.com"]
[Date "2020.02.04"]
[Round "2"]
[White "TheRigos"]
[Black "Zkid"]
[Result "0-1"]
[WhiteElo "2559"]
[BlackElo "2832"]
[TimeControl "180+2"]
[EndTime "13:24:22 PST"]
[Termination "Zkid won by resignation"]

1. e4 {[%clk 0:03:01.9]} 1... e6 {[%clk 0:02:04.5]} 2. d4 {[%clk 0:03:02.8]}
2... d5 {[%clk 0:02:05.2]} 3. Nd2 {[%clk 0:03:02.4]} 3... c5 {[%clk 0:02:05.7]}
4. Ngf3 {[%clk 0:03:01.3]} 4... cxd4 {[%clk 0:02:06.7]} 5. Nxd4 {[%clk 0:03:02]}
5... Nf6 {[%clk 0:02:07.1]} 6. e5 {[%clk 0:02:33.5]} 6... Nfd7 {[%clk
0:02:06.9]} 7. N2f3 {[%clk 0:02:28.2]} 7... Nc6 {[%clk 0:02:05.9]} 8. Bf4 {[%clk
0:02:24.5]} 8... Qb6 {[%clk 0:01:55.9]} 9. Nb3 {[%clk 0:02:22.6]} 9... Qb4+
{[%clk 0:01:46.5]} 10. Qd2 {[%clk 0:02:17.5]} 10... Qe4+ {[%clk 0:01:25.3]} 11.
Be2 {[%clk 0:02:15.8]} 11... Ndxe5 {[%clk 0:01:24.8]} 12. O-O {[%clk 0:02:07.6]}
12... Nc4 {[%clk 0:01:20.9]} 13. Qc1 {[%clk 0:01:54.3]} 13... Bd6 {[%clk
0:01:07.9]} 14. Bg3 {[%clk 0:01:29.1]} 14... Bxg3 {[%clk 0:00:51.1]} 15. hxg3
{[%clk 0:01:30]} 15... Nb4 {[%clk 0:00:36.9]} 16. Nbd4 {[%clk 0:00:34.6]} 16...
O-O {[%clk 0:00:34.9]} 17. Re1 {[%clk 0:00:32.5]} 17... Qg4 {[%clk 0:00:27.5]}
18. c3 {[%clk 0:00:21.3]} 18... Nc6 {[%clk 0:00:19.3]} 19. Ne5 {[%clk
0:00:22.5]} 19... N6xe5 {[%clk 0:00:13.8]} 20. Bxg4 {[%clk 0:00:23.5]} 20...
Nxg4 {[%clk 0:00:15.7]} 21. Qg5 {[%clk 0:00:23.5]} 21... Nf6 {[%clk 0:00:15.8]}
22. Nf3 {[%clk 0:00:23.2]} 22... Nxb2 {[%clk 0:00:14.7]} 23. Ne5 {[%clk
0:00:23.6]} 23... Ne4 {[%clk 0:00:14]} 24. Qe3 {[%clk 0:00:18.7]} 24... f6
{[%clk 0:00:14.9]} 25. Nf3 {[%clk 0:00:15.6]} 25... Nc4 {[%clk 0:00:15.1]} 26.
Qd4 {[%clk 0:00:16.8]} 26... b6 {[%clk 0:00:14.6]} 27. Nh4 {[%clk 0:00:06.6]}
27... Ned6 {[%clk 0:00:11.7]} 28. a4 {[%clk 0:00:07.2]} 28... a5 {[%clk
0:00:11.9]} 29. Rab1 {[%clk 0:00:07.9]} 29... Rb8 {[%clk 0:00:12]} 30. Qf4
{[%clk 0:00:08.2]} 30... Bd7 {[%clk 0:00:12.4]} 31. Qd2 {[%clk 0:00:09.4]} 31...
Nxd2 {[%clk 0:00:13.3]} 0-1

[Event "*** Titled Tuesday Blitz"]
[Site "Chess.com"]
[Date "2020.02.04"]
[Round "2"]
[White "Dhaydon19"]
[Black "Irishchessman16"]
[Result "1-0"]
[WhiteElo "2671"]
[BlackElo "2257"]
[TimeControl "180+2"]
[EndTime "13:24:25 PST"]
[Termination "Dhaydon19 won by resignation"]

1. d4 {[%clk 0:03:01.8]} 1... Nf6 {[%clk 0:03:00.4]} 2. Nf3 {[%clk 0:03:02.8]}
2... e6 {[%clk 0:03:00.1]} 3. g3 {[%clk 0:03:04.3]} 3... d5 {[%clk 0:02:55.1]}
4. Bg2 {[%clk 0:03:05.1]} 4... b5 {[%clk 0:02:54.6]} 5. O-O {[%clk 0:03:05.5]}
5... Nbd7 {[%clk 0:02:51.7]} 6. a4 {[%clk 0:03:05.9]} 6... b4 {[%clk 0:02:51.8]}
7. c4 {[%clk 0:03:04.6]} 7... bxc3 {[%clk 0:02:50.6]} 8. Nxc3 {[%clk 0:03:01]}
8... Bb4 {[%clk 0:02:49.4]} 9. Ne5 {[%clk 0:02:59.8]} 9... Bb7 {[%clk
0:02:46.8]} 10. Bg5 {[%clk 0:02:58.1]} 10... Be7 {[%clk 0:02:39]} 11. Rc1 {[%clk
0:02:54.3]} 11... c6 {[%clk 0:02:30.8]} 12. e4 {[%clk 0:02:44.9]} 12... O-O
{[%clk 0:02:28.9]} 13. exd5 {[%clk 0:02:43.2]} 13... cxd5 {[%clk 0:02:26.2]} 14.
Nxd7 {[%clk 0:02:27.9]} 14... Qxd7 {[%clk 0:02:21.1]} 15. Re1 {[%clk 0:02:18.3]}
15... Rfc8 {[%clk 0:02:16.6]} 16. Bf1 {[%clk 0:02:18.4]} 16... Bc6 {[%clk
0:02:04]} 17. Ba6 {[%clk 0:02:16.4]} 17... Bb7 {[%clk 0:02:03.8]} 18. Bb5 {[%clk
0:02:14.1]} 18... Bc6 {[%clk 0:02:04.8]} 19. Qd3 {[%clk 0:02:12.4]} 19... Bxb5
{[%clk 0:01:59.4]} 20. axb5 {[%clk 0:02:13.1]} 20... Rab8 {[%clk 0:01:54.5]} 21.
Ra1 {[%clk 0:02:13.4]} 21... Bb4 {[%clk 0:01:50.5]} 22. Bxf6 {[%clk 0:02:06.5]}
22... gxf6 {[%clk 0:01:50.8]} 23. Reb1 {[%clk 0:02:06.4]} 23... Rc7 {[%clk
0:01:33.1]} 24. Ra6 {[%clk 0:02:02.5]} 24... Rbc8 {[%clk 0:01:14.9]} 25. Ne2
{[%clk 0:01:57]} 25... Rb7 {[%clk 0:01:05.2]} 26. Rba1 {[%clk 0:01:34.2]} 26...
Qxb5 {[%clk 0:00:48.5]} 27. Qf3 {[%clk 0:01:34.9]} 27... f5 {[%clk 0:00:21.5]}
28. Nf4 {[%clk 0:01:32]} 28... Be7 {[%clk 0:00:16.9]} 29. Rxa7 {[%clk
0:01:27.6]} 29... Qxb2 {[%clk 0:00:17.5]} 30. Nh5 {[%clk 0:01:15.1]} 30... Rxa7
{[%clk 0:00:17.5]} 31. Rxa7 {[%clk 0:01:15.4]} 31... Rc1+ {[%clk 0:00:16.6]} 32.
Kg2 {[%clk 0:01:16.8]} 32... Qb5 {[%clk 0:00:16.5]} 33. Ra8+ {[%clk 0:01:14.2]}
33... Bf8 {[%clk 0:00:16.6]} 34. Rxf8+ {[%clk 0:01:06.4]} 34... Kxf8 {[%clk
0:00:17.6]} 35. Qa3+ {[%clk 0:01:07.9]} 35... Ke8 {[%clk 0:00:13.8]} 36. Qxc1
{[%clk 0:01:08.4]} 36... Qd3 {[%clk 0:00:13.8]} 37. Qe3 {[%clk 0:01:08.4]} 37...
Qd1 {[%clk 0:00:13.8]} 38. Nf6+ {[%clk 0:01:08.3]} 38... Kd8 {[%clk 0:00:12.5]}
39. Nxh7 {[%clk 0:01:07.6]} 39... Qh5 {[%clk 0:00:12.4]} 40. Qg5+ {[%clk
0:01:07.7]} 40... Qxg5 {[%clk 0:00:12.6]} 41. Nxg5 {[%clk 0:01:09.6]} 1-0